Cogmind - Beta 16 @@@ ROGUE MODE // 2025.11.21 @ 22:08:12 Player: opdo Result: Self-destructed Performance ------------- Evolutions (5) 2500 Regions Visited (9) 1800 Robots Destroyed (148) 740 Value Destroyed (5968) 5968 Prototype IDs (13) 260 Alien Tech Used (0) 0 Bonus (490) 490 TOTAL SCORE: 11758 Bonus ------- High Alert Combat Kills 74 Follower Combat Kills 416 Cogmind --------- Core Integrity 556/1000 Matter 7/300 Energy 150/150 System Corruption 17% Temperature Cool (9) Movement Walking (220) Ox2 Location -5/Upper Caves Parts ------- > --- POWER (2) -------- Micro Fission Core > --- PROPULSION (5) --- Thunder Leg Carbon Exoskeleton > --- UTILITY (7) ------ Armored Scrap Engine High-capacity Storage Unit Advanced Sensor Array Advanced Terrain Scanner > --- WEAPON (3) ------- Mini Assault Cannon > --- INVENTORY (20) --- Thunder Leg Armored Huge Wheel Large Storage Unit Medium Matter Pod (0) Advanced Terrain Scan Processor Improved Launcher Guidance Computer Advanced Recoil Stabilizer Improved Medium Armor Plating Focal Shield Improved Thermal Shield Point Defense System Improved Component Analysis Suite Tesla Rifle Improved Arc Projector Barrage Gun Enhanced Gauss Cannon Enhanced Gauss Cannon Proton Missile Launcher Peak State ------------ > --- POWER ------------ Micro Fission Core Micro Fission Core > --- PROPULSION ------- Thunder Leg Thunder Leg Thunder Leg Thunder Leg Enhanced Flexi-carbon Leg > --- UTILITY ---------- Armored Scrap Engine High-capacity Storage Unit Advanced Sensor Array IFF Parser Advanced Terrain Scanner Reaction Control System > --- WEAPON ----------- Tesla Rifle Mini Assault Cannon Enhanced Gauss Cannon > --- INVENTORY -------- Micro Fission Core Light Treads Armored Medium Treads Armored Huge Wheel Large Storage Unit Medium Matter Pod Advanced Terrain Scan Processor Improved Launcher Guidance Computer Advanced Recoil Stabilizer Improved Medium Armor Plating Focal Shield Improved Thermal Shield Point Defense System Improved Component Analysis Suite Improved Arc Projector Enhanced Gauss Cannon Enhanced Gauss Cannon Enhanced Gauss Cannon Proton Missile Launcher [Rating: 108] Favorites ----------- Power Cooled Deuterium Engine Engine Cooled Deuterium Engine Power Core Meta Core Propulsion Carbon-fiber Leg Treads Light Treads Leg Carbon-fiber Leg Wheel Wheel Utility High-capacity Storage Unit Device Armored Scrap Engine Storage High-capacity Storage Unit Processor Advanced Targeting Computer Hackware System Shield Protection Hardened Medium Armor Plating Weapon Flak Gun Energy Gun Tesla Rifle Ballistic Gun Flak Gun Ballistic Cannon Mini Assault Cannon Launcher Grenade Launcher Impact Weapon Powered Hammer Build | -11 -10 -10 -8 -7 -7 -7 -5 -5 -5 ------- Run | Yrd Mat Sub Mat Fac Sto Rec Fac Upp Upp Slots Evolved 10 | . . . 4 2 . . 4 . . Power 1 | . . . . 1 . . . . . Propulsion 3 | . . . 2 . . . 1 . . Utility 5 | . . . 2 1 . . 2 . . Weapon 1 | . . . . . . . 1 . . Parts Attached 119 | 7 5 7 22 11 25 8 32 1 1 Power 20 | 2 1 1 . 3 6 3 4 . . Engine 12 | 2 . . . 2 4 3 1 . . Core 8 | . 1 1 . 1 2 . 3 . . Reactor . | . . . . . . . . . . Propulsion 36 | 2 1 3 2 2 9 2 14 . 1 Treads 11 | 2 1 3 . . 4 . 1 . . Leg 20 | . . . 2 2 4 2 9 . 1 Wheel 5 | . . . . . 1 . 4 . . Hover . | . . . . . . . . . . Flight . | . . . . . . . . . . Utility 36 | 1 1 3 10 3 8 1 9 . . Device 12 | . 1 1 1 1 2 1 5 . . Storage 4 | 1 . . 2 . 1 . . . . Processor 4 | . . . 2 . 2 . . . . Hackware 3 | . . . 1 1 . . 1 . . Protection 13 | . . 2 4 1 3 . 3 . . Artifact . | . . . . . . . . . . Weapon 27 | 2 2 . 10 3 2 2 5 1 . Energy Gun 1 | . . . . . . . 1 . . Energy Cannon . | . . . . . . . . . . Ballistic Gun 12 | 2 . . 4 . 1 2 3 . . Ballistic Cannon 8 | . . . 3 2 1 . 1 1 . Launcher 3 | . 1 . 1 1 . . . . . Special Weapon . | . . . . . . . . . . Impact Weapon 3 | . 1 . 2 . . . . . . Slashing Weapon . | . . . . . . . . . . Piercing Weapon . | . . . . . . . . . . Special Melee Weapon . | . . . . . . . . . . Unidentified Prototypes 8 | . . 1 2 2 1 1 1 . . Corrupted Parts 2 | . . . . . . . 2 . . System Corruption 5 | . . . . . . . 5 . . Parts Lost 75 | . . 6 3 3 15 10 27 2 9 Power 14 | . . . . 2 3 3 4 1 1 Propulsion 29 | . . 2 . 1 6 4 11 1 4 Utility 18 | . . 3 2 . 4 1 6 . 2 Weapon 14 | . . 1 1 . 2 2 6 . 2 Highest Loss Streak 10 | . . 3 1 1 4 5 10 2 7 To Critical Strikes . | . . . . . . . . . . Average Backups 15 | 2 7 7 16 19 18 19 16 18 18 Power 1 | . 1 1 2 4 4 1 . . . Propulsion 3 | 2 3 2 4 3 1 3 4 3 2 Utility 4 | . . . 2 4 4 6 7 10 10 Weapon 5 | . 2 2 6 8 8 7 4 5 5 Tool/Special . | . . . . . . . . . . Unused Backups 51 | . 4 5 6 4 2 7 8 . 15 Power 3 | . . . . . 2 1 . . . Propulsion 18 | . 4 2 3 2 . 2 3 . 2 Utility 14 | . . . . . . 1 4 . 9 Weapon 16 | . . 3 3 2 . 3 1 . 4 Tool/Special . | . . . . . . . . . . Average Slot Usage (%) 82 | . 87 85 64 71 87 90 86 93 84 Engine 4 | . 3 . . 2 10 12 5 . . Core 5 | . 10 11 6 6 1 . 4 10 7 Treads 8 | . 28 29 . . 9 . 1 . . Leg 14 | . . . 12 17 11 28 20 29 27 Device 8 | . 2 2 2 4 5 7 14 29 24 Storage 7 | . 14 11 7 6 6 7 5 5 5 Processor 5 | . . . 6 6 10 11 4 . . Hackware 2 | . . . 1 7 6 5 2 . . Protection 3 | . . 6 7 6 4 . 3 . . Ballistic Gun 8 | . 23 12 4 1 3 8 12 . . Ballistic Cannon 4 | . . . 8 9 8 . 1 15 15 Impact Weapon 2 | . 4 6 2 . 1 5 . . . Peak Build Rating 108 | 6 9 27 62 73 70 60 108 108 105 Average Rating 55 | 5 7 20 58 69 49 50 81 105 97 On Entrance 48 | . 6 9 27 60 60 48 59 108 105 Avg Prop Armor Cover (%) 9 | . . . 10 . 16 18 6 . 4 Naked Turns . | . . . . . . . . . . Heaviest Build 97 | 12 14 32 77 77 97 71 96 77 77 Greatest Support 120 | 40 40 60 65 82 82 66 120 120 114 Greatest Overweight (x) 7 | 2 . . 1 1 6 6 7 . 2 Average Overweight (x) . | . . . . . 3 1 1 . . Largest Inventory Capacity 25 | 8 8 8 20 20 25 20 20 20 20 Average Capacity 16 | 7 8 8 17 20 20 20 20 20 20 Most Carried 20 | 5 8 8 20 20 20 20 20 20 20 Average Carried 15 | 2 7 7 16 19 18 19 17 19 19 Final Capacity 20 | 8 8 8 20 20 20 20 20 20 20 Final Carried 20 | 5 8 8 20 20 20 17 20 20 19 Scrap Engine Consumption 20 | . . . . . . 11 9 . . Constructs Created 3 | . . . . . . 1 1 1 . Constructs Modified 3 | . . . . . . 1 2 . . Class Distribution -------------------- 62% | Mutant 7% | Scavenger-Skirmisher 7% | Skirmisher 5% | Gunner 5% | Tank 4% | Scavenger-Gunner Dominant Class ---------------- Mutant | -10/Materials Mutant | -10/Subcaves Mutant | -8/Materials Mutant | -7/Factory Mutant | -7/Storage Mutant | -7/Recycling Scavenger-Skirmisher | -5/Factory Skirmisher | -5/Upper Caves Skirmisher | -5/Upper Caves Resources | -11 -10 -10 -8 -7 -7 -7 -5 -5 -5 ----------- Run | Yrd Mat Sub Mat Fac Sto Rec Fac Upp Upp Matter Collected 4819 | 264 117 297 842 503 1048 312 1290 52 94 Remotely . | . . . . . . . . . . Salvage Created 4911 | 16 348 247 1115 663 574 337 1599 12 . Parts 240 | 5 22 11 57 37 30 14 63 1 . Haulers Intercepted 6 | . 1 . 3 1 . . 1 . . Recyclers Shooed 8 | . 2 . . 1 2 . 3 . . Parts Field Recycled . | . . . . . . . . . . Retrieved Matter . | . . . . . . . . . . Parts Self-Destructed 3 | . . 3 . . . . . . . Prevented 1 | . . . . . . . . 1 . Parts Restored . | . . . . . . . . . . Kills | -11 -10 -10 -8 -7 -7 -7 -5 -5 -5 ------- Run | Yrd Mat Sub Mat Fac Sto Rec Fac Upp Upp Combat Hostiles Destroyed 125 | . 11 9 27 17 20 8 31 1 1 Melee 4 | . . 1 2 . . 1 . . . Guns 47 | . 8 2 2 1 1 6 27 . . Cannons 43 | . . . 13 13 15 . . 1 1 AOE 23 | . 3 5 4 3 3 1 4 . . Classes Destroyed 17 | 1 4 2 4 5 . 1 . . . Worker 4 | . . . 1 . 2 . 1 . . Builder 5 | . 1 . 1 1 1 . 1 . . Tunneler 2 | 1 . . . . . . 1 . . Hauler 6 | . 1 . 3 1 . . 1 . . Recycler 3 | . . . . 2 1 . . . . Operator 2 | . . . . 1 . . 1 . . Watcher 1 | . . . 1 . . . . . . Swarmer 26 | . 5 . 7 4 3 . 7 . . Grunt 45 | . 6 . 13 7 7 1 11 . . Brawler 4 | . . . . 1 . . 3 . . Duelist 3 | . . . . 1 1 1 . . . Sentry 20 | . . . 5 3 5 4 2 . 1 Demolisher 1 | . . . . . . 1 . . . Hunter 5 | . . . 2 . 3 . . . . Programmer 11 | . . . . 1 1 . 8 1 . Artisan 2 | . . 2 . . . . . . . Subdweller 10 | . . 9 . . . 1 . . . Decomposer 1 | . . . . . . . . 1 . Best Kill Streak 6 | 1 5 2 5 4 6 3 4 1 1 Combat Bots Only 5 | . 5 2 5 4 5 3 3 1 1 Max Kills in Single Turn 4 | 1 2 1 4 3 3 1 2 1 1 Gunslinging 1 | . . . . . . . 1 . . Exploded 4 | . 2 1 4 3 2 1 1 . . Melee 1 | . . 1 1 . . 1 . . . Uniques/NPCs Destroyed . | . . . . . . . . . . Combat | -11 -10 -10 -8 -7 -7 -7 -5 -5 -5 -------- Run | Yrd Mat Sub Mat Fac Sto Rec Fac Upp Upp Hostile Shots Fired 1439 | . 44 45 146 106 552 201 218 60 67 Missed 500 | . 8 11 38 49 206 70 82 19 17 Hits 939 | . 36 34 108 57 346 131 136 41 50 Melee 6 | . . . . 2 . 2 . 2 . Projectile 933 | . 36 34 108 55 346 129 136 39 50 AOE 14 | . . 6 . . 2 6 . . . Critical Strikes 20 | . . 1 3 3 . 1 9 3 . Part Disruptions 1 | . . . . . . . . 1 . Damage Taken 13287 | . 362 971 1592 857 3167 1078 3202 855 1203 Core 1397 | . 114 113 112 66 336 212 259 19 166 Absorbed by Shields 288 | . . . . . . 288 . . . Redirected to Shielding 101 | . . . 101 . . . . . . Ignored by Resistances 199 | . . . . . 158 . 41 . . Regen/Repaired (Parts) 203 | . . . . . . 55 148 . . Core Remaining (%) 50 | 100 . 9 79 . . 12 . . . Volleys Fired 335 | 3 28 23 35 45 68 15 94 8 16 Largest 3 | 2 2 2 3 2 2 2 3 3 3 Hottest 152 | 40 50 50 113 80 80 67 152 152 134 Shots Fired 760 | 6 56 46 101 90 125 18 277 16 25 Gun 419 | 6 54 29 33 7 16 15 258 1 . Cannon 302 | . . . 66 82 102 . 12 15 25 Launcher 39 | . 2 17 2 1 7 3 7 . . Special . | . . . . . . . . . . Kinetic 707 | 6 54 29 99 89 118 15 257 15 25 Thermal . | . . . . . . . . . . Explosive 26 | . 2 17 1 1 5 . . . . Electromagnetic 27 | . . . 1 . 2 3 20 1 . Robot Hit Streak 18 | 2 10 18 17 7 14 8 11 4 8 Robot Miss Streak 9 | 3 5 2 4 2 4 6 9 2 2 Penetration Max 1 | . . . . 1 . . 1 . . Secondary Targets 7 | . . . . . . . 7 . . Max Gunslinging Chain 2 | . . . . . . . 2 . . Shots Hit Robots 577 | 3 37 46 93 57 86 27 202 9 17 Core Hits 396 | 2 22 19 66 33 46 28 171 3 6 Critical Kills 5 | . 2 1 . . . . 2 . . Critical Parts Destroyed 11 | . 1 2 3 . . 2 3 . . Critical Strikes 31 | . 3 4 4 2 6 2 5 4 1 Destroy 10 | . 3 2 . . . . 5 . . Blast 14 | . . . 1 2 6 . . 4 1 Smash 7 | . . 2 3 . . 2 . . . Melee Attacks 114 | . 11 34 36 . 10 23 . . . Impact 114 | . 11 34 36 . 10 23 . . . Slashing . | . . . . . . . . . . Piercing . | . . . . . . . . . . Sneak Attacks 6 | . 2 2 1 . 1 . . . . Combat Hostiles 1 | . . . 1 . . . . . . Follow-up Attacks . | . . . . . . . . . . Damage Inflicted 16663 | 25 647 1316 2223 2281 2915 875 5151 590 640 Guns 5707 | 25 295 197 408 118 152 287 4220 5 . Cannons 5118 | . . . 687 1392 2020 . 172 306 541 Explosions 3572 | . 202 908 260 672 649 186 695 . . Melee 1640 | . 144 211 827 . 56 402 . . . Ramming 626 | . 6 . 41 99 38 . 64 279 99 Kinetic 10703 | 25 295 197 1095 1510 2172 287 4275 306 541 Thermal 810 | . . . . 525 44 61 180 . . Explosive 2040 | . 202 908 175 147 524 . 84 . . Electromagnetic 844 | . . . 85 . 81 125 548 5 . Impact 1640 | . 144 211 827 . 56 402 . . . Slashing . | . . . . . . . . . . Piercing . | . . . . . . . . . . Highest Corruption 17 | . . . 5 . 4 4 10 17 17 Average Corruption 6 | . . . 5 . 2 4 6 15 17 Corruption Purged . | . . . . . . . . . . Corruption Blocked . | . . . . . . . . . . Effects 137 | . . . 28 . 7 25 43 18 16 Message Errors 31 | . . . 5 . 2 8 12 3 1 Matter Fused 33 | . . . 8 . 1 9 10 3 2 Heat Flow Errors 13 | . . . 3 . . . 4 2 4 Energy Discharges 18 | . . . 3 . 1 2 5 5 2 Parts Rejected 1 | . . . . . . . . 1 . Parts Fused 1 | . . . . . 1 . . . . Data Loss (minor) 17 | . . . 3 . 2 2 7 1 2 Data Loss (major) 6 | . . . 1 . . 2 . 2 1 Misfires 4 | . . . 3 . . . . . 1 Alerts 10 | . . . 2 . . 2 4 . 2 Misdirections 1 | . . . . . . . 1 . . Weapon Failures 2 | . . . . . . . . 1 1 Overload Shots . | . . . . . . . . . . Overflow Damage 783 | . 37 95 197 151 43 99 83 29 49 Projectiles 130 | . . . 8 23 32 . . 18 49 Explosions 228 | . 3 . . 128 11 3 83 . . Melee 425 | . 34 95 189 . . 96 . 11 . Knockbacks 63 | . 1 1 28 8 14 1 6 4 . Impact 13 | . 1 1 7 1 . 1 2 . . Kinetic 47 | . . . 18 7 14 . 4 4 . Secondary 3 | . . . 3 . . . . . . Self-Inflicted Damage 487 | . . 17 . 96 93 5 276 . . Shots 16 | . . 2 . 2 2 2 8 . . Rammed 11 | . 3 . . . 4 . 4 . . Targets Rammed 63 | . 3 . 4 7 8 . 7 16 18 Kicked 51 | . . . 4 7 3 . 3 16 18 Crushed 1 | . . . . . 1 . . . . Highest Temperature 405 | . 28 . 279 405 144 13 230 229 264 Average Temperature 67 | . 8 . 87 101 31 7 48 59 117 Received Heat Transfer 3156 | . 120 93 792 282 831 216 576 9 237 Effects 7 | . . . 3 3 . . . . 1 Shutdowns 1 | . . . . 1 . . . . . Energy Bleed 1 | . . . 1 . . . . . . Interference 3 | . . . 2 . . . . . 1 Damage (minor) 2 | . . . . 2 . . . . . Siege Activations . | . . . . . . . . . . Martial Activations . | . . . . . . . . . . Shielding Activations . | . . . . . . . . . . Robots Disrupted 1 | . . . . . . . 1 . . Combat Hostiles 1 | . . . . . . . 1 . . Robots Corrupted 8 | . 1 1 6 . . . . . . Combat Hostiles 7 | . . 1 6 . . . . . . Parts Fried 17 | . 3 4 7 . . . 3 . . Impact Corruptions 18 | . 2 3 8 . . 3 . 2 . Robots Melted . | . . . . . . . . . . Combat Hostiles . | . . . . . . . . . . Parts Melted . | . . . . . . . . . . Heat Transferred 550 | . . . . 250 100 50 150 . . Parts Sabotaged . | . . . . . . . . . . Parts Stolen . | . . . . . . . . . . Parts Stripped . | . . . . . . . . . . Power Chain Reactions 4 | . . . . . 2 1 1 . . Alert | -11 -10 -10 -8 -7 -7 -7 -5 -5 -5 ------- Run | Yrd Mat Sub Mat Fac Sto Rec Fac Upp Upp Maximum Alert Level 3 | . 1 . 1 1 3 1 2 . . Low Security (%) 59 | 100 92 . 78 51 14 62 56 . . Level 1 28 | . 7 . 21 48 25 37 33 . . Level 2 8 | . . . . . 36 . 9 . . Level 3 3 | . . . . . 23 . . . . Level 4 . | . . . . . . . . . . Level 5 . | . . . . . . . . . . High Security . | . . . . . . . . . . Max Security . | . . . . . . . . . . Peak Influence 820 | 5 228 . 247 313 820 324 509 . . Initial 304 | . . . . 80 139 304 50 . . Average 201 | . 105 . 162 177 455 148 177 . . Influence Increases 4818 | 5 380 . 865 625 1393 244 1241 45 20 Destroy 0b10 Robot/C 2500 | . 220 . 540 340 580 160 620 20 20 Destroy 0b10 Robot/NC 130 | 5 10 . 30 25 30 5 25 . . Destroy Leader 556 | . 42 . 128 82 182 . 112 10 . Allied During Kill 113 | . . . . . 108 5 . . . Successful Hack 109 | . 17 . 12 32 14 30 4 . . Select Force Hacks 30 | . . . . . . 30 . . . Disable Machine 480 | . . . 30 90 150 . 210 . . Anti-Garrison Action 200 | . . . . . 200 . . . . Destroy Structure 380 | . 16 . 20 41 99 14 190 . . Advance Influence 50 | . . . . . . . 50 . . Partial Spotted 15 | . . . 15 . . . . . . Lose Combat Pursuer 255 | . 75 . 90 15 30 . 30 15 . Influence Decreases 4818 | 5 343 37 688 495 918 1026 754 391 161 Entered New Map 970 | . . 18 . 97 168 478 . 181 28 Time Decay 2918 | 5 343 19 508 368 470 408 494 190 113 Lost Part 610 | . . . 30 30 150 100 260 20 20 Lost Ally 170 | . . . . . 130 40 . . . Purge Threat 150 | . . . 150 . . . . . . Squads Dispatched 22 | . 2 . 3 2 8 . 6 . 1 Investigation 4 | . 1 . . . 3 . . . . Extermination 8 | . . . . 1 2 . 5 . . Reinforcement 8 | . 1 . 3 1 2 . 1 . . Assault 1 | . . . . . . . . . 1 Garrison 1 | . . . . . 1 . . . . Intercept . | . . . . . . . . . . Searches Triggered . | . . . . . . . . . . Construction Impeded 1 | . . . . . 1 . . . . Haulers Reinforced 3 | . . . . 1 1 . 1 . . Active Scanning Responses . | . . . . . . . . . . Cargo Convoy Interrupts . | . . . . . . . . . . Stealth | -11 -10 -10 -8 -7 -7 -7 -5 -5 -5 --------- Run | Yrd Mat Sub Mat Fac Sto Rec Fac Upp Upp Distress Signals 13 | . 3 . 3 . 5 2 . . . Communications Jammed 11 | . . . . . . . 11 . . Distress Signals 11 | . . . . . . . 11 . . Times Spotted 212 | . 28 10 43 23 37 15 39 5 12 Peak Tracking Total 10 | . 7 3 6 4 5 5 4 3 10 Tactical Retreats 16 | . 3 . 6 1 2 1 2 1 . Traps | -11 -10 -10 -8 -7 -7 -7 -5 -5 -5 ------- Run | Yrd Mat Sub Mat Fac Sto Rec Fac Upp Upp Traps Triggered 4 | . 1 . . . 1 . 2 . . Indirectly . | . . . . . . . . . . Trap Hack Attempts . | . . . . . . . . . . Triggered . | . . . . . . . . . . Disarmed . | . . . . . . . . . . Reprogrammed . | . . . . . . . . . . Reused . | . . . . . . . . . . Traps Extracted . | . . . . . . . . . . Installed . | . . . . . . . . . . Triggered . | . . . . . . . . . . Machines | -11 -10 -10 -8 -7 -7 -7 -5 -5 -5 ---------- Run | Yrd Mat Sub Mat Fac Sto Rec Fac Upp Upp Machines Disabled 33 | . . 1 2 6 10 . 14 . . Max in Single Turn 5 | . . 1 1 5 2 . 4 . . Garrison Access 4 | . . . . 2 1 . 1 . . Machines Repaired . | . . . . . . . . . . Machines Dismantled . | . . . . . . . . . . Machines Sabotaged . | . . . . . . . . . . Overloaded Fab Kills . | . . . . . . . . . . Hacking | -11 -10 -10 -8 -7 -7 -7 -5 -5 -5 --------- Run | Yrd Mat Sub Mat Fac Sto Rec Fac Upp Upp Machines Accessed 47 | . 6 . 8 8 11 9 5 . . Terminals 35 | . 6 . 7 5 9 5 3 . . Fabricators 1 | . . . . 1 . . . . . Repair Stations . | . . . . . . . . . . Recycling Units 4 | . . . . . 1 3 . . . Scanalyzers 2 | . . . 1 . . . 1 . . Garrison Access 4 | . . . . 2 1 . 1 . . Total Hacks 129 | . 17 . 32 13 26 31 10 . . Successful 68 | . 11 . 15 7 10 20 5 . . Failed 59 | . 6 . 16 6 16 11 4 . . Catastrophic 14 | . 3 . 3 3 3 2 . . . Database Lockouts 2 | . . . 1 . . . 1 . . Manual 87 | . 14 . 27 11 13 20 2 . . Terminals 97 | . 17 . 27 10 18 19 6 . . Fabricators 1 | . . . . 1 . . . . . Repair Stations . | . . . . . . . . . . Recycling Units 14 | . . . . . 5 9 . . . Scanalyzers 8 | . . . 5 . . . 3 . . Garrison Access 6 | . . . . 2 3 . 1 . . Terminal Hacks 18 | . 4 . 4 . 3 5 2 . . Record 1 | . . . . . . 1 . . . Robot Analysis 1 | . 1 . . . . . . . . Prototype ID Bank 1 | . 1 . . . . . . . . Open Door 2 | . . . . . 2 . . . . Open DSF 1 | . . . . . . . 1 . . Terminal Index 3 | . 1 . 1 . . 1 . . . Alert Level 4 | . . . 2 . . 1 1 . . Unreport Threat 1 | . . . 1 . . . . . . Hauler Manifests 1 | . 1 . . . . . . . . Zone Layout 1 | . . . . . 1 . . . . Release Object 2 | . . . . . . 2 . . . Fabricator Hacks . | . . . . . . . . . . Repair Station Hacks . | . . . . . . . . . . Recycling Unit Hacks 8 | . . . . . 2 6 . . . Report Inventory 4 | . . . . . 1 3 . . . Retrieve Matter 1 | . . . . . . 1 . . . Retrieve Components 3 | . . . . . 1 2 . . . Scanalyzer 5 | . . . 3 . . . 2 . . Retrieve Study 5 | . . . 3 . . . 2 . . Garrison Access Hacks 3 | . . . . 2 . . 1 . . Seal Access 3 | . . . . 2 . . 1 . . Unauthorized Hacks 34 | . 7 . 8 5 5 9 . . . Terminals 30 | . 7 . 8 5 2 8 . . . Botnet 10 | . 2 . 3 2 1 2 . . . Operators 2 | . . . . 1 . 1 . . . Skim 18 | . 5 . 5 2 1 5 . . . Fabricators . | . . . . . . . . . . Repair Stations . | . . . . . . . . . . Recycling Units 3 | . . . . . 2 1 . . . Monitor 1 | . . . . . 1 . . . . Recyclers 1 | . . . . . 1 . . . . Tunnel 1 | . . . . . . 1 . . . Scanalyzers . | . . . . . . . . . . Garrison Access 1 | . . . . . 1 . . . . Jam 1 | . . . . . 1 . . . . Data Cores Recovered 1 | . . . . 1 . . . . . Used . | . . . . . . . . . . Hacking Detections 37 | . 6 . 8 6 8 7 2 . . Full Trace Events 1 | . . . . . 1 . . . . Feedback Events . | . . . . . . . . . . Feedback Blocked . | . . . . . . . . . . Robot Schematics Acquired . | . . . . . . . . . . Robots Built . | . . . . . . . . . . Authchips . | . . . . . . . . . . Time . | . . . . . . . . . . Total Robot Build Rating . | . . . . . . . . . . Part Schematics Acquired . | . . . . . . . . . . Parts Built . | . . . . . . . . . . Authchips . | . . . . . . . . . . Time . | . . . . . . . . . . Total Part Build Rating . | . . . . . . . . . . Part Studies Acquired 4 | . . . 2 . . . 2 . . Parts Repaired . | . . . . . . . . . . Time . | . . . . . . . . . . Parts Recycled . | . . . . . . . . . . Recycled Matter . | . . . . . . . . . . Retrieved Matter . | . . . . . . . . . . Retrieved Components 4 | . . . . . 2 2 . . . Parts Scanalyzed . | . . . . . . . . . . Part Schematics Acquired . | . . . . . . . . . . Parts Damaged . | . . . . . . . . . . Bothacking | -11 -10 -10 -8 -7 -7 -7 -5 -5 -5 ------------ Run | Yrd Mat Sub Mat Fac Sto Rec Fac Upp Upp Used RIF Installer . | . . . . . . . . . . Robots Hacked . | . . . . . . . . . . Non-combat . | . . . . . . . . . . Combat . | . . . . . . . . . . Robot Hacks Applied . | . . . . . . . . . . Relay Couplers Released . | . . . . . . . . . . Fabnet Peak Effective % . | . . . . . . . . . . Robots Rewired 5 | . . . . . . 5 . . . Allies Hacked . | . . . . . . . . . . Hacks Repelled . | . . . . . . . . . . Allies | -11 -10 -10 -8 -7 -7 -7 -5 -5 -5 -------- Run | Yrd Mat Sub Mat Fac Sto Rec Fac Upp Upp Total Allies 15 | . . . . . 10 5 . . . Largest Group 10 | . . . . . 10 3 2 . . Highest-Rated Group 170 | . . . . . 170 79 79 . . Highest-Rated Ally 40 | . . . . . 29 40 40 . . Total Orders . | . . . . . . . . . . Ally Attacks 117 | . . . . . 105 12 . . . Total Damage 1475 | . . . . . 1322 153 . . . Kills 15 | . . . . . 12 3 . . . Allies Corrupted . | . . . . . . . . . . Allies Melted . | . . . . . . . . . . Intel | -11 -10 -10 -8 -7 -7 -7 -5 -5 -5 ------- Run | Yrd Mat Sub Mat Fac Sto Rec Fac Upp Upp Active Infowar (turns) 3530 | . 179 159 298 . . . 2186 397 311 Optics 298 | . . . 298 . . . . . . Sensors 752 | . . . . . . . 44 397 311 IFF 1836 | . . . . . . . 1146 397 293 Terrain 1426 | . . . . . . . 865 397 164 Seismic 338 | . 179 159 . . . . . . . Jamming 1335 | . . . . . . . 1335 . . Robot Analysis Total 1 | . 1 . . . . . . . . Derelict Logs Recovered . | . . . . . . . . . . Drone Launches 2 | . . . . . 2 . . . . Drone Recoveries . | . . . . . . . . . . Exploration | -11 -10 -10 -8 -7 -7 -7 -5 -5 -5 ------------- Run | Yrd Mat Sub Mat Fac Sto Rec Fac Upp Upp Turns Passed 9891 | 93 908 1256 1525 846 1184 1121 2250 397 311 Spaces Moved 5442 | 50 476 663 955 576 529 549 1185 277 182 Core 12 | 12 . . . . . . . . . Treads 1280 | 38 476 663 6 . 97 . . . . Legs 3596 | . . . 949 576 164 507 941 277 182 Wheels 554 | . . . . . 268 42 244 . . Hover . | . . . . . . . . . . Flight . | . . . . . . . . . . Fastest Speed 50 | 50 160 160 90 97 108 112 112 120 120 Average Speed 142 | 143 160 160 111 110 166 175 148 123 126 Slowest Speed 330 | 160 160 160 177 190 330 196 210 124 220 Overloaded Moves . | . . . . . . . . . . Propulsion Burnouts . | . . . . . . . . . . Robots Hopped . | . . . . . . . . . . Potential Cave-ins . | . . . . . . . . . . Cave-ins Triggered . | . . . . . . . . . . Exploration Rate (%) 50 | 5 83 36 80 23 87 97 29 52 12 Regions Visited 9 Branch Regions 5 Pre-discovered Areas 5 | . 1 . 2 . . 2 . . . Known Exits Taken 4 | . 1 . 1 1 . 1 . . . Unknown Exits Taken 5 | 1 . 1 . . 1 . 1 1 . Scrap Searched 5 | . . 4 . . . . . . 1 Spaces Dug 37 | . 3 16 6 . 6 6 . . . Terrain Destroyed 380 | . 21 68 18 47 94 14 101 7 10 Melee 37 | . 3 16 6 . 6 6 . . . Projectile 54 | . . . 2 9 21 . 5 7 10 AOE 289 | . 18 52 10 38 67 8 96 . . Terrain Rammed . | . . . . . . . . . . Walls Destroyed . | . . . . . . . . . . Machines Disabled . | . . . . . . . . . . Actions | -11 -10 -10 -8 -7 -7 -7 -5 -5 -5 --------- Run | Yrd Mat Sub Mat Fac Sto Rec Fac Upp Upp Total 6732 | 64 558 759 1286 700 689 665 1465 312 234 Wait 376 | . 22 11 179 40 18 11 72 8 15 Move 5433 | 49 475 662 954 575 528 548 1184 276 182 Hop . | . . . . . . . . . . Pick Up 122 | 5 7 8 32 11 14 10 33 1 1 Fast Attach 46 | 5 1 4 6 3 8 4 14 1 . Attach 51 | 1 . 4 3 3 11 6 21 1 1 Detach 1 | . . . . . . . 1 . . Swap 61 | 1 5 6 15 6 16 1 10 1 . Drop 77 | . 6 7 22 10 7 9 15 . 1 Fire 335 | 3 28 23 35 45 68 15 94 8 16 Melee 114 | . 11 34 36 . 10 23 . . . Ram 5 | . . . . . 1 . 4 . . Kick 51 | . . . 4 7 3 . 3 16 18 Crush 7 | . 3 . . . 4 . . . . Escape Stasis . | . . . . . . . . . . Rewire 53 | . . . . . 1 38 14 . . Trap . | . . . . . . . . . . Miscellaneous . | . . . . . . . . . . Route ------- -11/Scrapyard -10/Materials (discovered 6 exits: *Mat x3 / *Min x2 / *Sub) -10/Subcaves -8/Materials (discovered 3 exits: *Fac x3) -7/Factory (discovered 4 exits: *Fac x2 / *Sto / Low) -7/Storage (discovered 2 exits: *Fac / *Rec) -7/Recycling -5/Factory (discovered 2 exits: [*Fac] / [*Upp]) -5/Upper Caves -5/Upper Caves History --------- Turn | Location | Event 15 | -11/Scrapyard | Discovered new exit (range 15) 94 | -11/Scrapyard | Entered Materials 251 | -10/Materials | Discovered new exit (range 6) 300 | -10/Materials | Build established: Mutant 457 | -10/Materials | Discovered new exit (range 16) 549 | -10/Materials | Identified exit to Materials 549 | -10/Materials | Identified exit to Mines 549 | -10/Materials | Identified exit to Subcaves 605 | -10/Materials | Loaded intel: 1 repair station location 618 | -10/Materials | Learned location of Storage (-7) 624 | -10/Materials | Learned location of 1 exit from Materials 630 | -10/Materials | Learned 4 Recycling zone layouts 644 | -10/Materials | Loaded intel: 13 trap records 666 | -10/Materials | Learned Materials trap positions 1002 | -10/Materials | Entered Subcaves 1011 | -10/Subcaves | Ambushed by Subdwellers from Twisted Machinery 1312 | -10/Subcaves | A Subdweller sparked back to life 1312 | -10/Subcaves | A Subdweller sparked back to life 1343 | -10/Subcaves | Core integrity fell below 50% 1368 | -10/Subcaves | Found Prototype Power Core 1368 | -10/Subcaves | Identified Meta Core 1370 | -10/Subcaves | Attached Meta Core, gained temporary slots: Propulsion, Utility, Weapon 1373 | -10/Subcaves | Lost 3 parts (2n1u) 1834 | -10/Subcaves | Core integrity fell below 20% 1998 | -10/Subcaves | Ambushed by angry Subdweller bent on revenge 2078 | -10/Subcaves | Visited 4L-MR0's lab 2094 | -10/Subcaves | Found Prototype Leg 2247 | -10/Subcaves | Discovered new exit (range 8) 2258 | -10/Subcaves | Entered Materials 2258 | -8/Materials | Evolved 4 slots: Propulsion x2, Utility x2 2259 | -8/Materials | Identified exit to Factory 2260 | -8/Materials | Loaded intel: 24 trap records 2271 | -8/Materials | Identified Arachnoskeleton 2272 | -8/Materials | Attached Arachnoskeleton, gained temporary slots: Propulsion x3 2677 | -8/Materials | Build established: Tank 2824 | -8/Materials | Central database locked down 3006 | -8/Materials | Discovered exit to Factory (range 8) 3042 | -8/Materials | Build established: Mutant 3641 | -8/Materials | Learned location of 1 exit from Lower Caves 3659 | -8/Materials | Learned location of Zion (-7) 3666 | -8/Materials | Learned Recycling recycling unit intel 3685 | -8/Materials | Learned location of 1 exit from Recycling 3783 | -8/Materials | Entered Factory 3783 | -7/Factory | Evolved 2 slots: Power x1, Utility x1 3784 | -7/Factory | Identified exit to Factory 3784 | -7/Factory | Identified exit to Storage 3784 | -7/Factory | Identified exit to Lower Caves 4207 | -7/Factory | Discovered exit to Factory (range 6) 4629 | -7/Factory | Entered Storage 5123 | -7/Storage | Lost 4 parts (1p1n1u1w) 5234 | -7/Storage | Discovered exit to Factory (range 12) 5293 | -7/Storage | Lost 4 parts (1p2n1u) 5297 | -7/Storage | Core integrity fell below 50% 5358 | -7/Storage | Assisted by bots powering up and referring to "LRC-V3" 5513 | -7/Storage | Garrison activated, responded to threat 5582 | -7/Storage | Lost 4 allies 5809 | -7/Storage | Used back door to open Recycling access 5809 | -7/Storage | Discovered new exit (range 3) 5813 | -7/Storage | Entered Recycling 5814 | -7/Recycling | Identified exit to Factory 5816 | -7/Recycling | Loaded intel: 4 recycling unit locations 5933 | -7/Recycling | Lost 5 parts (1p3n1w) 6411 | -7/Recycling | Learned location of 1 exit from Extension 6456 | -7/Recycling | Learned location of 1 exit from Hub_04(d) 6463 | -7/Recycling | Entered Scraplab 6481 | -7/Recycling | Found Prototype Device 6481 | -7/Recycling | Identified Scrap Engine 6490 | -7/Recycling | Learned location of 1 exit from Cetus 6516 | -7/Recycling | Learned location of 1 exit from Extension 6531 | -7/Recycling | Learned 4 Factory zone layouts 6554 | -7/Recycling | Learned location of 1 exit from Cetus 6585 | -7/Recycling | Learned location of Lower Caves (-6) 6648 | -7/Recycling | Core integrity fell below 20% 6684 | -7/Recycling | Lost 5 parts (2p1n1u1w) 6934 | -7/Recycling | Entered Factory 6934 | -5/Factory | Accompanied by 2 allies 6934 | -5/Factory | Evolved 4 slots: Propulsion x1, Utility x2, Weapon x1 6946 | -5/Factory | Central database locked down 7068 | -5/Factory | Identified exit to DSF 7698 | -5/Factory | Lost 3 parts (2n1u) 8033 | -5/Factory | Build established: Gunner 8364 | -5/Factory | Lost 10 parts (2p4n2u2w) 8384 | -5/Factory | System corruption reached 10% 8651 | -5/Factory | Build established: Scavenger-Skirmisher 8822 | -5/Factory | Discovered new exit (range 9) 9142 | -5/Factory | Discovered new exit (range 2) 9184 | -5/Factory | Entered Upper Caves 9448 | -5/Upper Caves | Build established: Skirmisher 9564 | -5/Upper Caves | Discovered new exit (range 13) 9581 | -5/Upper Caves | Entered another Upper Caves area 9674 | -5/Upper Caves | Attracted the attention of an 0b10 checkpoint 9854 | -5/Upper Caves | Attracted the attention of an 0b10 outpost 9892 | -5/Upper Caves | Self-destructed Last Messages --------------- 09864_ Kicked Y-72 Warden. 09865_ Enh. Gauss Cannon destroyed. 09869_ Kicked Y-72 Warden. 09871_ Thunder Leg destroyed. 09872_ Kicked Y-72 Warden out of the way. 09874_ IFF Parser destroyed. 09878_ Acquired 4 matter. 09879_ System corrupted: IFF burst signal emitted. 09880_ Penetrated by Slug. 09883_ Thunder Leg destroyed. 09884_ C-45 Heavy ARC bursts open, deploying its payload. 09884_ G-67 Veteran unfolds itself. 09884_ G-50 Soldier unfolds itself. 09884_ L-41 Fighter unfolds itself. 09884_ G-50 Soldier unfolds itself. 09884_ I-47 Archangel unfolds itself. 09886_ Penetrated by Slug. 09886_ Slug penetrates Wall. Map ----- +----------------------------------------------------+ | ????????????????????????????????#????????????????? | | ??????????????????????????????#??##??????????????? | | ?????????????????????????????????????????????????? | | ?????????????????????????????????????????????????? | | ?????????????????????????????????????????????????? | | ??????????????????????????????#??????????????????? | | ?????????????????????????????????????????????????? | | ?????????????????????????????????????????????????? | | ???????????????????????????????????#######???????? | | ???????????????????????????????????#" "" ##??????? | | ?????????????????????????????? ????# """ #???????? | | ?????????????????????????#????##???#="" "#???????# | | ??????????????????????????????# #?### ###??????? | | ????????????????????????????#?# ## # ##??#????? | | ??????????????????????????????# ##??????? | | ?????????????????? ??? ???????### ##?????# | | ????????????????????? ?#???????### ### ####??? | | ??????????????????????? #??#??#??# #?## #??? | | ???????????????????? ??gg???#????# #??# ##??? | | ????????????????????####g###????## #??## #???? | | ?????????????????? ?#Yb; #????## ##??## #???# | | ????????????????????# b #??#??# ###??## ##??# | | ??????????????????? + ??##?## #"##??## #??? | | ????????????????????+ #?????# ##??## #??? | | ??????????????? ????# #??##### ## #??#?# #??? | | ????????????????????# ; @#### ## #????# #??? | | ??????????#?????#?###### ## #????# #### | | ?????????## ??# ##### #???## # #? | | ????????## ????# #### l #### ##### "#?? | | ????????# ???## #???## ## ## "##? | | ?????????? #????#####?##g % Y### #?? | | ???????????# ###### ###"gg% ;# #?? | | ????????????# "# i ### #?# | | ?????????##?#" %" ### ## ##?? | | ???"?????????#### " ### ## #??# | | ????????????????## ## # #??? | | ?????????????????## ### # #" " #??# | | ??????????????????## #?## ;# #??? | | ???????????????????# ##??## #### "#"#####??? | | ?? ?????????? ?????# ##???# #??# "# #???#??? | | ???????????????????# #?#?## #?### "#####??????? | | ???????????????????# ##?####???###"#??????????? | | ????????#??????????## #?#??#?????###??#???????? | | ????????????#???????### ##????#?????????????#????? | | ?????????????#?????????##??????????#?#????????##?? | | ????????????????????#????#??#????????????????????? | | ????????????????????????????????????#?#??#???????? | | ???????????????????????????????????????#?????#???? | | ?????????????????????????????????##??????????????? | | ????????????????????????????#????????????????#???? | +----------------------------------------------------+ Best States ------------- Heat Dissipation 40 Coolant Potential 50 Energy Generation 31 Energy Capacity 520 Matter Stores 300 Matter Capacity 300 Sight Range 20 Robot Scan Range 16 Terrain Scan Range 20 Terrain Scan Density 10 Jamming Range 14 Armor Coverage 800 Resistance: KI 30 Resistance: TH 10 Propulsion Shielding 66 Melee Speed Boost 20 Evasion (%) 78 Targeting Accuracy 8 Target Analysis 5 Recoil Reduction 3 Offensive Hacking 10 Defensive Hacking 10 Item Schematics ----------------- None Robot Schematics ------------------ None Fabricated ------------ Nothing Repaired ---------- Nothing Studied --------- Carbon-fiber Leg | -8/Materials | Hacked Flak Cannon | -8/Materials | Hacked Imp. Aluminum Leg | -5/Factory | Hacked Imp. Carbon-fiber Leg | -5/Factory | Hacked Alien Tech Used ----------------- None Achievements -------------- Hammer Time Sprinter Challenges ------------ None Game ------ Seed AlphaPointAutopenetrator Manual? 0 Play Time 01:07:43 Cumulative 128.6 hours Start 2025.11.20 @ 23:15:26 End 2025.11.21 @ 22:08:12 Sessions 5 Manual Loads 0 Difficulty Rogue Special Mode None Game No. 327 Rogue 325 Adventurer 2 Explorer 0 Win Type - Total 1 Types 1/0/0/0/0/0/0/0/0/0 Lore% 80 Gallery% 62 Achievement% 41 Wizard Run 0 Options --------- Layout 2 ASCII 0 Keyboard 0 Movement Numpad Keybinds 0 Fullscreen 2 Font 24/Smallcaps Map View 50x44 Zoom Use 0% Tactical HUD 1 Map Filters NONE Filters NONE Steam 1 RUN: dc323103-36e7-475a-b087-44e59ddc29a9